fUST/lending_fUST_20250908
["ID","MTS","AMOUNT","RATE_DAILY","PERIOD"]
[384289607,1757316638806,-500.0,0.00013763,2]
[384289608,1757316638816,-500.0,0.00013763,2]
[384289609,1757316638825,-500.0,0.00013763,2]
[384289610,1757316638834,-500.0,0.00013763,2]
[384289611,1757316638843,-500.0,0.00013763,2]
[384289612,1757316638853,-500.0,0.00013763,2]
[384289613,1757316638863,-500.0,0.00013763,2]
[384289614,1757316638872,-500.0,0.00013763,2]
[384289615,1757316638881,-500.0,0.00013763,2]
[384289616,1757316638891,-500.0,0.00013763,2]
[384289617,1757316638900,-500.0,0.00013763,2]
[384289618,1757316638910,-500.0,0.00013763,2]
[384289619,1757316638922,-369.42946311,0.00013763,2]
[384289620,1757316638933,-433.21009668,0.00013763,2]
[384289621,1757316638944,-500.0,0.00013763,2]
[384289622,1757316638955,-500.0,0.00013763,2]
[384289623,1757316638965,-500.0,0.00013763,2]
[384289624,1757316638975,-500.0,0.00013763,2]
[384289625,1757316638984,-500.0,0.00013763,2]
[384289626,1757316638994,-500.0,0.00013763,2]
[384289627,1757316639003,-500.0,0.00013763,2]
[384289628,1757316639012,-323.56746818,0.00013763,2]
[384289629,1757316639021,-500.0,0.00013763,2]
[384289630,1757316639031,-500.0,0.00013763,2]
[384289631,1757316639041,-588.6022029,0.00013763,2]
[384289632,1757316639050,-500.0,0.00013763,2]
[384289633,1757316639059,-500.0,0.00013763,2]
[384289634,1757316639069,-500.0,0.00013763,2]
[384289635,1757316639078,-500.0,0.00013763,2]
[384289636,1757316639087,-500.0,0.00013763,2]
[384289637,1757316639096,-500.0,0.00013763,2]
[384289638,1757316639105,-500.0,0.00013763,2]
[384289639,1757316639115,-500.0,0.00013763,2]
[384289640,1757316639124,-499.99999999,0.00013763,2]
[384289641,1757316639133,-500.0,0.00013763,2]
[384289642,1757316639143,-480.0,0.00013764,2]
[384289643,1757316639151,-480.0,0.00013764,2]
[384289644,1757316639161,-480.0,0.00013764,2]
[384289645,1757316639170,-480.0,0.00013764,2]
[384289646,1757316639180,-480.0,0.00013764,2]
[384289647,1757316639189,-480.0,0.00013764,2]
[384289648,1757316639199,-480.0,0.00013764,2]
[384289649,1757316639208,-1750.62,0.00013764,2]
[384289650,1757316639218,-480.0,0.00013764,2]
[384289651,1757316639228,-1033.19,0.00013764,2]
[384289652,1757316639237,-480.0,0.00013764,2]
[384289653,1757316639247,-114.01607081,0.00013764,2]
[384289654,1757316639259,-365.98392919,0.00013764,2]
[384289655,1757316639269,-480.0,0.00013764,2]
[384289656,1757316639278,-8682.01,0.00013764,2]
[384289657,1757316639287,-480.0,0.00013764,2]
[384289658,1757316639296,-1164.43,0.00013764,2]
[384289659,1757316639305,-803.33,0.00013764,2]
[384289660,1757316639315,-480.0,0.00013764,2]
[384289661,1757316639324,-480.0,0.00013764,2]
[384289662,1757316639334,-1353.07,0.00013764,2]
[384289663,1757316639343,-500.0,0.00013764,2]
[384289664,1757316639353,-215.96938456,0.00013764,2]
[384289665,1757316639363,-480.0,0.00013764,2]
[384289666,1757316639373,-541.41,0.00013764,2]
[384289667,1757316639383,-838.54,0.00013764,2]
[384289668,1757316639393,-480.0,0.00013764,2]
[384289669,1757316639403,-480.0,0.00013764,2]
[384289670,1757316639412,-480.0,0.00013764,2]
[384289671,1757316639422,-194.16379098,0.00013765,2]
[384289672,1757316639431,-510.99289691,0.00013765,2]
[384289673,1757316639441,-487.48641326,0.00013765,2]
[384289674,1757316639450,-482.19374773,0.00013765,2]
[384289675,1757316639460,-480.0,0.00013765,2]
[384289676,1757316639473,-480.0,0.00013765,2]
[384289677,1757316639483,-480.0,0.00013765,2]
[384289678,1757316639492,-480.0,0.00013765,2]
[384289679,1757316639502,-201.19507156,0.00013765,2]
[384289680,1757316639513,-480.0,0.00013765,2]
[384289681,1757316639523,-480.0,0.00013765,2]
[384289682,1757316639533,-480.0,0.00013765,2]
[384289683,1757316639544,-480.0,0.00013765,2]
[384289684,1757316639554,-485.09429888,0.00013765,2]
[384289685,1757316639564,-314.89942521,0.00013765,2]
[384289686,1757316639573,-221.76160759,0.00013765,2]
[384289687,1757316639583,-480.0,0.00013765,2]
[384289688,1757316639592,-480.0,0.00013765,2]
[384289689,1757316639601,-480.0,0.00013765,2]
[384289690,1757316639612,-480.0,0.00013765,2]
[384289691,1757316639622,-480.0,0.00013765,2]
[384289692,1757316639632,-480.0,0.00013765,2]
[384289693,1757316639641,-372.37620143,0.00013765,2]
[384289694,1757316639651,-480.0,0.00013765,2]
[384289695,1757316639660,-480.0,0.00013765,2]
[384289696,1757316639670,-480.0,0.00013765,2]
[384289697,1757316639679,-480.0,0.00013765,2]
[384289698,1757316639689,-480.0,0.00013765,2]
[384289699,1757316639698,-480.0,0.00013765,2]
[384289700,1757316639708,-480.0,0.00013765,2]
[384289701,1757316639718,-480.0,0.00013765,2]
[384289702,1757316639729,-480.0,0.00013765,2]
[384289703,1757316639740,-206.47811632,0.00013765,2]
[384289704,1757316639750,-480.0,0.00013765,2]
[384289705,1757316639760,-480.0,0.00013765,2]
[384289706,1757316639769,-480.0,0.00013765,2]
[384289707,1757316639778,-480.0,0.00013765,2]
[384289708,1757316639788,-480.0,0.00013765,2]
[384289709,1757316639798,-480.0,0.00013765,2]
[384289710,1757316639807,-209.56594064,0.00013765,2]
[384289711,1757316639817,-574.45478107,0.00013765,2]
[384289712,1757316639827,-291.53,0.00013765,2]
[384289713,1757316639836,-480.0,0.00013765,2]
[384289714,1757316639846,-480.0,0.00013765,2]
[384289715,1757316639855,-480.0,0.00013765,2]
[384289716,1757316639865,-480.0,0.00013765,2]
[384289717,1757316639874,-480.0,0.00013765,2]
[384289718,1757316639884,-480.0,0.00013765,2]
[384289719,1757316639893,-480.0,0.00013765,2]
[384289720,1757316639904,-171.87259867,0.00013765,2]
[384289721,1757316639915,-480.0,0.00013765,2]
[384289722,1757316639925,-480.0,0.00013765,2]
[384289723,1757316639935,-480.0,0.00013765,2]
[384289724,1757316639944,-480.0,0.00013765,2]
[384289725,1757316639954,-153.086999,0.00013765,2]
[384289726,1757316639963,-154.158476,0.00013765,2]
[384289727,1757316639972,-480.0,0.00013765,2]
[384289728,1757316639982,-480.0,0.00013765,2]
[384289729,1757316639991,-151.0,0.00013765,2]
[384289731,1757316640000,-480.0,0.00013765,2]
[384289732,1757316640011,-486.04974622,0.00013765,2]
[384289733,1757316640020,-480.0,0.00013765,2]
[384289734,1757316640029,-480.0,0.00013765,2]
[384289735,1757316640039,-152.700802,0.00013765,2]
[384289736,1757316640048,-152.166818,0.00013765,2]
[384289737,1757316640057,-480.0,0.00013765,2]
[384289738,1757316640067,-480.0,0.00013765,2]
[384289739,1757316640077,-151.0,0.00013765,2]
[384289740,1757316640085,-480.0,0.00013765,2]
[384289742,1757316640095,-151.0,0.00013765,2]
[384289743,1757316640104,-480.0,0.00013765,2]
[384289744,1757316640114,-151.0,0.00013765,2]
[384289745,1757316640123,-480.0,0.00013765,2]
[384289746,1757316640132,-151.0,0.00013765,2]
[384289747,1757316640142,-480.0,0.00013765,2]
[384289748,1757316640151,-151.0,0.00013765,2]
[384289749,1757316640161,-151.0,0.00013765,2]
[384289750,1757316640170,-151.0,0.00013765,2]
[384289751,1757316640180,-151.0,0.00013765,2]
[384289752,1757316640293,-164.978103,0.00013765,2]
[384289753,1757316640303,-151.0,0.00013765,2]
[384289754,1757316640313,-151.0,0.00013765,2]
[384289755,1757316640323,-480.0,0.00013765,2]
[384289756,1757316640333,-480.0,0.00013765,2]
[384289757,1757316640342,-173.037576,0.00013765,2]
[384289758,1757316640352,-173.037576,0.00013765,2]
[384289759,1757316640361,-173.037576,0.00013765,2]
[384289760,1757316640371,-173.037576,0.00013765,2]
[384289761,1757316640381,-480.0,0.00013765,2]
[384289762,1757316640391,-240.372511,0.00013765,2]
[384289763,1757316640401,-480.0,0.00013765,2]
[384289764,1757316640410,-170.036965,0.00013765,2]
[384289765,1757316640420,-170.036965,0.00013765,2]
[384289766,1757316640430,-170.036965,0.00013765,2]
[384289767,1757316640439,-170.036965,0.00013765,2]
[384289768,1757316640449,-664.27,0.00013765,2]
[384289769,1757316640458,-151.0,0.00013765,2]
[384289770,1757316640472,-151.0,0.00013765,2]
[384289771,1757316640481,-480.0,0.00013765,2]
[384289772,1757316640491,-151.0,0.00013765,2]
[384289773,1757316640500,-151.0,0.00013765,2]
[384289774,1757316640510,-151.0,0.00013765,2]
[384289775,1757316640519,-480.0,0.00013765,2]
[384289776,1757316640529,-349.752151,0.00013765,2]
[384289777,1757316640539,-349.752151,0.00013765,2]
[384289778,1757316640548,-349.752151,0.00013765,2]
[384289779,1757316640558,-349.752151,0.00013765,2]
[384289780,1757316640567,-151.0,0.00013765,2]
[384289781,1757316640576,-480.0,0.00013765,2]
[384289782,1757316640585,-624.63256648,0.00013765,2]
[384289783,1757316640595,-480.0,0.00013765,2]
[384289784,1757316640605,-480.0,0.00013765,2]
[384289785,1757316640614,-480.0,0.00013765,2]
[384289786,1757316640624,-480.0,0.00013765,2]
[384289787,1757316640634,-480.0,0.00013765,2]
[384289788,1757316640644,-483.35416143,0.00013765,2]
[384289789,1757316640653,-151.0,0.00013765,2]
[384289790,1757316640663,-480.0,0.00013765,2]
[384289791,1757316640674,-151.0,0.00013765,2]
[384289792,1757316640685,-151.0,0.00013765,2]
[384289793,1757316640695,-151.0,0.00013765,2]
[384289794,1757316640704,-151.0,0.00013765,2]
[384289795,1757316640713,-199.485456,0.00013765,2]
[384289796,1757316640722,-283.491775,0.00013765,2]
[384289797,1757316640732,-618.11,0.00013765,2]
[384289798,1757316640742,-474.89532438,0.00013767,2]
[384289799,1757316640752,-480.0,0.00013767,2]
[384289800,1757316640761,-480.0,0.00013767,2]
[384289801,1757316640771,-480.0,0.00013767,2]
[384289802,1757316640781,-480.0,0.00013767,2]
[384289803,1757316640791,-480.0,0.00013767,2]
[384289804,1757316640800,-480.0,0.00013767,2]
[384289805,1757316640809,-475.29059068,0.00013767,2]
[384289806,1757316640819,-480.0,0.00013767,2]
[384289807,1757316640828,-480.0,0.00013767,2]
[384289809,1757316640837,-480.0,0.00013767,2]
[384289810,1757316640847,-480.0,0.00013767,2]
[384289811,1757316640856,-480.0,0.00013767,2]
[384289812,1757316640865,-480.0,0.00013767,2]
[384289813,1757316640874,-480.0,0.00013767,2]
[384289814,1757316640884,-480.0,0.00013767,2]
[384289815,1757316640893,-480.0,0.00013767,2]
[384289816,1757316640903,-151.0,0.00013767,2]
[384289817,1757316640912,-151.0,0.00013767,2]
[384289818,1757316640921,-151.0,0.00013767,2]
[384289819,1757316640930,-151.0,0.00013767,2]
[384289820,1757316640940,-349.752151,0.00013767,2]
[384289821,1757316640949,-349.752151,0.00013767,2]
[384289822,1757316640959,-349.752151,0.00013767,2]
[384289823,1757316640968,-349.752151,0.00013767,2]
[384289824,1757316640977,-151.0,0.00013767,2]
[384289825,1757316640987,-151.0,0.00013767,2]
[384289826,1757316640996,-151.0,0.00013768,2]
[384289827,1757316641005,-151.0,0.00013768,2]
[384289828,1757316641014,-154.0479,0.00013768,2]
[384289829,1757316641024,-301.33983,0.00013768,2]
[384289830,1757316641033,-151.0,0.00013768,2]
[384289831,1757316641042,-151.789915,0.00013768,2]
[384289832,1757316641051,-151.0,0.00013768,2]
[384289833,1757316641060,-151.0,0.00013768,2]
[384289834,1757316641070,-151.0,0.00013768,2]
[384289835,1757316641080,-151.0,0.00013768,2]
[384289836,1757316641090,-151.0,0.00013768,2]
[384289837,1757316641099,-151.0,0.00013768,2]
[384289838,1757316641109,-151.0,0.00013768,2]
[384289839,1757316641118,-214.641394,0.00013768,2]
[384289840,1757316641128,-301.999999,0.00013768,2]
[384289841,1757316641137,-151.0,0.00013768,2]
[384289842,1757316641148,-228.853298,0.00013768,2]
[384289843,1757316641158,-173.037576,0.00013768,2]
[384289844,1757316641169,-173.037576,0.00013768,2]
[384289845,1757316641178,-173.037576,0.00013768,2]
[384289846,1757316641187,-173.037576,0.00013768,2]
[384289847,1757316641196,-128.92499451,0.00013768,2]
[384289848,1757316641368,-41.11197049,0.00013768,2]
[384289849,1757316641378,-170.036965,0.00013768,2]
[384289850,1757316641387,-170.036965,0.00013768,2]
[384289851,1757316641397,-170.036965,0.00013768,2]
[384289852,1757316641406,-172.27862752,0.00013768,2]
[384289853,1757316641415,-157.0,0.00013769,2]
[384289854,1757316641425,-157.0,0.00013769,2]
[384289855,1757316641434,-157.0,0.00013769,2]
[384289856,1757316641444,-157.0,0.00013769,2]
[384289857,1757316641453,-290.56573212,0.00013769,2]
[384289858,1757316641463,-500.0,0.00013769,2]
[384289859,1757316641480,-157.0,0.00013769,2]
[384289860,1757316641489,-157.0,0.00013769,2]
[384289861,1757316641498,-157.0,0.00013769,2]
[384289862,1757316641508,-297.17031766,0.00013769,2]
[384289863,1757316641518,-245.4658174,0.00013769,2]
[384289864,1757316641529,-157.0,0.00013769,2]
[384289865,1757316641541,-157.0,0.00013769,2]
[384289866,1757316641551,-157.0,0.00013769,2]
[384289867,1757316641562,-290.8971716,0.00013769,2]
[384289868,1757316641572,-291.55851868,0.00013769,2]
[384289869,1757316641581,-500.0,0.00013769,2]
[384289870,1757316641594,-157.0,0.00013769,2]
[384289871,1757316641604,-151.0,0.00013769,2]
[384289872,1757316641615,-157.0,0.00013769,2]
[384289873,1757316641626,-157.0,0.00013769,2]
[384289874,1757316641637,-517.0,0.00013769,2]
[384289875,1757316641649,-157.474625,0.00013769,2]
[384289876,1757316641659,-151.0,0.00013769,2]
[384289877,1757316641671,-151.0,0.00013769,2]
[384289878,1757316641681,-158.845699,0.00013769,2]
[384289879,1757316641692,-157.0,0.00013769,2]
[384289880,1757316641701,-157.0,0.00013769,2]
[384289881,1757316641712,-157.0,0.00013769,2]
[384289882,1757316641723,-157.0,0.00013769,2]
[384289883,1757316641732,-500.0,0.00013769,2]
[384289884,1757316641742,-151.0,0.00013865,2]
[384289885,1757316641755,-151.903509,0.00013865,2]
[384289886,1757316641766,-152.998992,0.00013865,2]
[384289887,1757316641778,-151.589918,0.00013865,2]
[384289888,1757316641790,-1019.17044866,0.00013866,2]
[384289889,1757316641800,-151.0,0.00013868,2]
[384289890,1757316641810,-275.069368,0.00013868,2]
[384289891,1757316641819,-151.0,0.00013871,2]
[384289892,1757316641828,-151.0,0.00013871,2]
[384289893,1757316641838,-173.037576,0.00013871,2]
[384289894,1757316641847,-173.037576,0.00013871,2]
[384289895,1757316641856,-173.037576,0.00013871,2]
[384289896,1757316641866,-173.037576,0.00013871,2]
[384289897,1757316641875,-170.036965,0.00013871,2]
[384289898,1757316641886,-170.036965,0.00013871,2]
[384289899,1757316641895,-170.036965,0.00013871,2]
[384289900,1757316641906,-170.036965,0.00013871,2]
[384289901,1757316641916,-151.0,0.00013871,2]
[384289902,1757316641926,-151.0,0.00013871,2]
[384289903,1757316641938,-151.0,0.00013871,2]
[384289904,1757316641948,-151.0,0.00013871,2]
[384289905,1757316641958,-349.752151,0.00013871,2]
[384289906,1757316641967,-349.752151,0.00013871,2]
[384289907,1757316641976,-349.752151,0.00013871,2]
[384289908,1757316641985,-349.752151,0.00013871,2]
[384289909,1757316641994,-151.0,0.00013871,2]
[384289910,1757316642003,-151.0,0.00013871,2]
[384289911,1757316642012,-151.0,0.00013871,2]
[384289912,1757316642022,-151.0,0.00013871,2]
[384289913,1757316642032,-10576.6745308,0.00013871,2]
[384289914,1757316642041,-151.0,0.000139,2]
[384289915,1757316642050,-151.62309,0.000139,2]
[384289916,1757316642059,-151.0,0.000139,2]
[384289917,1757316642069,-151.0,0.000139,2]
[384289918,1757316642078,-2397.45199038,0.000139,2]
[384289919,1757316642087,-153.008251,0.00013902,2]
[384289920,1757316642099,-13904.0625145,0.00013903,2]
[384289921,1757316642109,-3614.2416467,0.00013903,2]
[384289922,1757316642123,-151.0,0.00013903,2]
[384289923,1757316642133,-151.0,0.00013903,2]
[384289924,1757316642142,-151.0,0.00013903,2]
[384289925,1757316642151,-151.0,0.00013903,2]
[384289926,1757316642161,-151.435723,0.00013903,2]
[384289927,1757316642171,-151.0,0.00013903,2]
[384289928,1757316642181,-160.0,0.00013949,2]
[384289929,1757316642191,-417.15472785,0.00013949,2]
[384289930,1757316642202,-203.26219058,0.00013949,2]
[384289931,1757316642211,-217.62647793,0.00013949,2]
[384289932,1757316642221,-160.0,0.00013949,2]
[384289933,1757316642231,-530.71506861,0.00013949,2]
[384289934,1757316642240,-233.03190505,0.00013949,2]
[384289935,1757316642250,-160.0,0.00013949,2]
[384289936,1757316642260,-846.71598105,0.00013949,2]
[384289937,1757316642270,-202.118102,0.00013949,2]
[384289938,1757316642280,-975.0,0.00013967,2]
[384289939,1757316642291,-2154.0,0.00013967,2]
[384289940,1757316642300,-634.0,0.00013967,2]
[384289941,1757316642311,-409.406,0.00013967,2]
[384289942,1757316642321,-151.0,0.00013967,2]
[384289943,1757316642331,-151.0,0.00013967,2]
[384289944,1757316642342,-173.037576,0.00013967,2]
[384289945,1757316642351,-173.037576,0.00013967,2]
[384289946,1757316642361,-173.037576,0.00013967,2]
[384289947,1757316642373,-173.037576,0.00013967,2]
[384289948,1757316642382,-170.036965,0.00013967,2]
[384289949,1757316642392,-170.036965,0.00013967,2]
[384289950,1757316642402,-170.036965,0.00013967,2]
[384289951,1757316642411,-170.036965,0.00013967,2]
[384289952,1757316642421,-233.099947,0.00013967,2]
[384289953,1757316642430,-151.0,0.00013967,2]
[384289954,1757316642439,-151.0,0.00013967,2]
[384289955,1757316642557,-151.0,0.00013967,2]
[384289956,1757316642568,-349.752151,0.00013967,2]
[384289957,1757316642579,-349.752151,0.00013967,2]
[384289958,1757316642589,-349.752151,0.00013967,2]
[384289959,1757316642601,-349.752151,0.00013967,2]
[384289960,1757316642610,-151.0,0.00013967,2]
[384289961,1757316642619,-151.0,0.00013967,2]
[384289962,1757316642629,-166.281,0.0001397,2]
[384289963,1757316642638,-500.0,0.00013973,2]
[384289964,1757316642647,-500.0,0.00013973,2]
[384289965,1757316642656,-500.0,0.00013973,2]
[384289966,1757316642665,-470.1428095,0.00013973,2]
[384289967,1757316642675,-500.0,0.00013973,2]
[384289968,1757316642685,-502.01557013,0.00013973,2]
[384289969,1757316642695,-500.0,0.00013973,2]
[384289970,1757316642706,-500.0,0.00013973,2]
[384289971,1757316642716,-502.19873014,0.00013973,2]
[384289972,1757316642726,-500.0,0.00013973,2]
[384289973,1757316642736,-150.101,0.00013977,2]
[384289974,1757316642746,-77244.50659491,0.0001399,2]
[384289975,1757316642756,-151.0,0.0001399,2]
[384289976,1757316642766,-151.0,0.0001399,2]
[384289977,1757316642779,-151.0,0.0001399,2]
[384289978,1757316642789,-151.0,0.0001399,2]
[384289979,1757316642798,-151.0,0.0001399,2]
[384289980,1757316642807,-151.0,0.0001399,2]
[384289981,1757316642817,-151.0,0.0001399,2]
[384289982,1757316642827,-173.037576,0.0001399,2]
[384289983,1757316642837,-173.037576,0.0001399,2]
[384289984,1757316642847,-173.037576,0.0001399,2]
[384289985,1757316642857,-173.03758,0.0001399,2]
[384289986,1757316642866,-170.036965,0.0001399,2]
[384289987,1757316642876,-170.036965,0.0001399,2]
[384289988,1757316642887,-170.036965,0.0001399,2]
[384289989,1757316642897,-170.036969,0.0001399,2]
[384289990,1757316642907,-151.0,0.0001399,2]
[384289991,1757316642916,-151.0,0.0001399,2]
[384289992,1757316642926,-267.590859,0.0001399,2]
[384289993,1757316642935,-349.752151,0.0001399,2]
[384289994,1757316642945,-349.752151,0.0001399,2]
[384289995,1757316642954,-349.752151,0.0001399,2]
[384289996,1757316642964,-349.752143,0.0001399,2]
[384289997,1757316642973,-151.0,0.0001399,2]
[384289998,1757316642983,-151.0,0.0001399,2]
[384289999,1757316642992,-479.21182986,0.00013998,2]
[384290000,1757316643001,-3077.0,0.00013998,2]
[384290001,1757316643011,-172350.4653311,0.00014,2]
[384290002,1757316643020,-155.120015,0.00014,2]
[384290003,1757316643029,-151.0,0.00014,2]
[384290004,1757316643038,-151.0,0.00014,2]
[384290005,1757316643047,-151.0,0.00014,2]
[384290006,1757316643057,-151.0,0.00014,2]
[384290007,1757316643066,-3899.20409922,0.00014,2]
[384290010,1757316643450,-4260.01950309,0.00014,2]
[384290011,1757316645435,209.9,0.00012329,2]
[384290022,1757316646510,-3306.05269556,0.00014,2]
[384290023,1757316646525,-2365.46757232,0.00014,2]
[384290024,1757316646604,-3731.05850614,0.00014,2]
[384290025,1757316656135,174.92,0.00012329,2]
[384290026,1757316667138,874.6,0.00012329,2]
[384290028,1757316749687,169.020211,0.00012885,2]
[384290029,1757316763187,-190.44007514,0.0001335,2]
[384290030,1757316763222,-490.08872764,0.00013528,2]
[384290031,1757316763252,-490.08872764,0.00013665,2]
[384290032,1757316763282,-490.0887276,0.00013724,2]
[384290033,1757316763312,-480.0,0.00013762,2]
[384290034,1757316763343,-480.0,0.00013762,2]
[384290035,1757316763373,-300.0,0.00013762,2]
[384290036,1757316763404,-480.0,0.00013762,2]
[384290037,1757316763436,-480.0,0.00013762,2]
[384290038,1757316763466,-447.0,0.00013762,2]
[384290039,1757316763496,-354.45748396,0.00013763,2]
[384290040,1757316763726,-635.68251604,0.00013763,2]
[384290041,1757316763756,-480.0,0.00013763,2]
[384290042,1757316763787,-2485.93,0.00013763,2]
[384290043,1757316763818,-559.11,0.00013763,2]
[384290044,1757316763850,-480.0,0.00013763,2]
[384290045,1757316763880,-238.56496792,0.00013763,2]
[384290046,1757316773778,-480.0,0.00013762,2]
[384290047,1757316773811,-241.43503208,0.00013763,2]
[384290048,1757316773841,-480.0,0.00013763,2]
[384290049,1757316773870,-408.8054938,0.00013763,2]
[384290050,1757316773902,-614.58,0.00013763,2]
[384290051,1757316773934,-480.0,0.00013763,2]
[384290052,1757316774093,-966.85,0.00013763,2]
[384290053,1757316774132,-2643.71999171,0.00013763,2]
[384290054,1757316774150,-5422.59000829,0.00013763,2]
[384290055,1757316774160,-1236.9,0.00013763,2]
[384290056,1757316774169,-2373.66999171,0.00013763,2]
[384290057,1757316774455,1000.0,0.00012914,2]
[384290058,1757316783852,-300.0,0.00013762,2]
[384290059,1757316783883,-573.66,0.00013762,2]
[384290060,1757316783915,-252.09000829,0.00013763,2]
[384290061,1757316783946,-480.0,0.00013763,2]
[384290062,1757316783977,-480.0,0.00013763,2]
[384290063,1757316784008,-480.0,0.00013763,2]
[384290064,1757316784039,-1194.48,0.00013763,2]
[384290065,1757316784069,-480.0,0.00013763,2]
[384290066,1757316784098,-480.0,0.00013763,2]
[384290067,1757316784127,-79.54998342,0.00013763,2]
[384290068,1757316784286,-400.45001658,0.00013763,2]
[384290069,1757316793781,-3907.98,0.00013625,2]
[384290070,1757316793806,-2184.05,0.00013625,2]
[384290071,1757316799812,391.2,0.00012329,2]
[384290072,1757316802423,-1974.83999491,0.00013664,2]
[384290073,1757316802447,-6050.33001018,0.00013664,2]
[384290074,1757316841572,-2248.64,0.00013624,2]
[384290075,1757316841602,-480.0,0.00013762,2]
[384290076,1757316841632,-480.0,0.00013762,2]
[384290077,1757316841662,-1288.64,0.00013762,2]
[384290078,1757316841692,-480.0,0.00013762,2]
[384290079,1757316841814,-45.45,0.00013762,2]
[384290080,1757316848796,-300.0,0.00013761,2]
[384290081,1757316848827,-434.55,0.00013762,2]
[384290082,1757316848859,-2647.65,0.00013762,2]
[384290083,1757316848889,-485.42472001,0.00013762,2]
[384290084,1757316848918,-480.0,0.00013762,2]
[384290085,1757316848947,-477.0105559,0.00013762,2]
[384290086,1757316849071,-350.73944818,0.00013762,2]
[384290087,1757316858938,-2270.16290449,0.00013624,2]
[384290088,1757316858971,-131.90294738,0.00013762,2]
[384290089,1757316859002,-480.0,0.00013762,2]
[384290090,1757316859035,-480.0,0.00013762,2]
[384290091,1757316859071,-480.0,0.00013762,2]
[384290092,1757316859103,-481.58384119,0.00013762,2]
[384290093,1757316859136,-216.67611592,0.00013762,2]
[384290094,1757316859168,-439.35838204,0.00013762,2]
[384290095,1757316859306,-40.64161796,0.00013762,2]
[384290096,1757316868881,-480.0,0.00013762,2]
[384290097,1757316868916,-480.0,0.00013762,2]
[384290098,1757316868953,-480.0,0.00013762,2]
[384290099,1757316868993,-886.09,0.00013763,2]
[384290100,1757316869033,-480.0,0.00013763,2]
[384290101,1757316869068,-651.46,0.00013763,2]
[384290102,1757316869108,-480.0,0.00013763,2]
[384290103,1757316869144,-480.0,0.00013763,2]
[384290104,1757316869180,-480.0,0.00013763,2]
[384290105,1757316869359,-204.91,0.00013762,2]
[384290112,1757317282511,579.89420743,0.00013087,2]
[384290118,1757317291121,579.89420743,0.00013087,2]
[384290119,1757317449415,168.3,0.00013171,2]
[384290121,1757317647158,-399.51767289,0.00013345,2]
[384290122,1757317647185,-294.05323656,0.00013661,2]
[384290123,1757317647210,-465.108277,0.00013699,2]
[384290124,1757317647236,-300.0,0.00013713,2]
[384290125,1757317647262,-480.0,0.00013714,2]
[384290126,1757317647289,-480.0,0.00013714,2]
[384290127,1757317647313,-442.52737594,0.00013714,2]
[384290128,1757317647337,-162.4069477,0.00013714,2]
[384290129,1757317647360,-480.0,0.00013714,2]
[384290130,1757317647385,-480.0,0.00013714,2]
[384290131,1757317647408,-480.0,0.00013714,2]
[384290132,1757317647431,-442.68709172,0.00013714,2]
[384290133,1757317647455,-480.0,0.00013714,2]
[384290134,1757317647605,-480.0,0.00013714,2]